bitfinex/quotes_BTCUSD_20250204
["timestamp","ask_amount","ask_price","bid_price","bid_amount"]
[1738681686553,0.27643818,99913.0,99883.0,0.08767435]
[1738681686554,0.31075504,99900.0,99883.0,0.08767435]
[1738681686777,0.150174,99885.0,99883.0,0.08767435]
[1738681687218,0.15,99899.0,99887.0,0.150169]
[1738681687465,0.200208,99896.0,99883.0,0.08767435]
[1738681687662,0.00105312,99898.0,99883.0,0.08767435]
[1738681687663,0.0472,99894.0,99883.0,0.08767435]
[1738681687885,0.15,99884.0,99883.0,0.08767435]
[1738681688113,0.27643818,99884.0,99883.0,0.08767435]
[1738681688317,0.15,99884.0,99883.0,0.08767435]
[1738681688521,0.27643818,99884.0,99883.0,0.08767435]
[1738681688748,0.43504748,99884.0,99883.0,0.03767435]
[1738681688963,0.43504748,99884.0,99870.0,0.00022428]
[1738681688964,0.323193,99871.0,99870.0,0.00022428]
[1738681689166,0.42557806,99871.0,99870.0,0.00022428]
[1738681689370,0.42557806,99871.0,99870.0,0.00036465]
[1738681689900,0.78267406,99871.0,99870.0,0.00036465]
[1738681690104,0.74923306,99871.0,99870.0,0.00036465]
[1738681690366,0.54322806,99871.0,99870.0,0.00036465]
[1738681690565,0.92432806,99871.0,99870.0,0.00036465]
[1738681690765,0.80667806,99871.0,99870.0,0.00036465]
[1738681691096,0.150255,99830.0,99815.0,0.15050128]
[1738681691329,0.15,99850.0,99816.0,0.10238506]
[1738681691330,0.00105312,99829.0,99816.0,0.10238506]
[1738681691537,0.350314,99843.0,99815.0,0.00069279]
[1738681691745,0.15,99841.0,99815.0,0.10307785]
[1738681691963,0.15,99834.0,99818.0,0.150272]
[1738681692170,0.00105312,99833.0,99815.0,0.00069279]
[1738681692380,0.150276,99817.0,99815.0,0.00069279]
[1738681692591,0.15105312,99816.0,99815.0,0.00069279]
[1738681693419,0.25343818,99816.0,99815.0,0.00069279]
[1738681693619,1.77538506,99816.0,99815.0,0.00069279]
[1738681693853,1.65,99816.0,99815.0,0.00069279]
[1738681694031,0.200349,99826.0,99815.0,0.00069279]
[1738681694032,0.01025409,99835.0,99815.0,0.00069279]
[1738681694229,0.18374173,99833.0,99815.0,0.00069279]
[1738681694441,0.150269,99821.0,99818.0,0.001]
[1738681694650,0.01037098,99837.0,99818.0,0.001]
[1738681694850,0.150248,99835.0,99819.0,0.25265606]
[1738681695075,0.400628,99843.0,99819.0,0.25265606]
[1738681695076,0.00105312,99842.0,99819.0,0.10238506]
[1738681695253,0.00105312,99842.0,99822.0,0.150267]
[1738681695254,0.150243,99839.0,99822.0,0.150267]
[1738681695395,0.150241,99840.0,99822.0,0.25265206]
[1738681695601,0.150246,99836.0,99817.0,0.150273]
[1738681695826,0.20137712,99839.0,99818.0,0.25265806]
[1738681696024,0.04925239,99838.0,99818.0,0.10238506]
[1738681696244,0.15,99837.0,99822.0,0.150266]
[1738681696395,0.15105312,99837.0,99818.0,0.10238506]
[1738681696598,0.08030355,99856.0,99819.0,0.00120209]
[1738681696853,0.15,99847.0,99821.0,0.200358]
[1738681697052,0.08135667,99846.0,99822.0,0.10238506]
[1738681697193,0.15,99842.0,99822.0,0.25265106]
[1738681697396,0.15,99842.0,99822.0,0.10238506]
[1738681697397,0.150244,99838.0,99822.0,0.10238506]
[1738681697635,0.15,99842.0,99815.0,0.00069279]
[1738681697636,0.150267,99823.0,99815.0,0.00069279]
[1738681697829,0.00105312,99822.0,99815.0,0.00069279]
[1738681698092,0.150276,99817.0,99815.0,0.00069279]
[1738681698296,0.150269,99821.0,99815.0,0.00069279]
[1738681698522,0.00105312,99820.0,99815.0,0.00069279]
[1738681698635,0.150275,99817.0,99815.0,0.00069279]
[1738681699043,0.150271,99820.0,99815.0,0.00169279]
[1738681699427,0.00105312,99824.0,99815.0,0.00069279]
[1738681699639,0.150232,99845.0,99817.0,0.200366]
[1738681699851,0.08030355,99822.0,99815.0,0.00069279]
[1738681700051,0.150273,99819.0,99815.0,0.00069279]
[1738681700232,0.150276,99817.0,99815.0,0.00069279]
[1738681700463,0.00105312,99816.0,99815.0,0.00069279]
[1738681700651,0.15132912,99816.0,99815.0,0.00069279]
[1738681700855,0.00105312,99816.0,99815.0,0.00069279]
[1738681700994,0.15,99825.0,99815.0,0.00069279]
[1738681701200,0.00105312,99824.0,99815.0,0.00069279]
[1738681701400,0.31075504,99850.0,99815.0,0.00069279]
[1738681701401,0.15,99835.0,99815.0,0.00069279]
[1738681701601,0.150268,99822.0,99815.0,0.00069279]
[1738681701801,0.01605312,99834.0,99815.0,0.00069279]
[1738681701802,0.150269,99821.0,99815.0,0.00069279]
[1738681702008,0.00105312,99824.0,99816.0,0.30275206]
[1738681702364,0.15,99828.0,99818.0,0.150273]
[1738681702568,0.15,99828.0,99816.0,0.10238506]
[1738681702783,0.150243,99839.0,99819.0,0.200362]
[1738681702989,0.150243,99839.0,99816.0,0.10238506]
[1738681702990,0.08030355,99856.0,99831.0,0.150252]
[1738681703189,0.08030355,99843.0,99820.0,0.10238506]
[1738681703390,0.150243,99839.0,99820.0,0.10238506]
[1738681703548,0.150246,99837.0,99823.0,0.150265]
[1738681703749,1.5,99855.0,99824.0,0.10358705]
[1738681704001,1.5,99855.0,99825.0,0.00120193]
[1738681704210,0.00105312,99854.0,99826.0,0.30273206]
[1738681704346,0.00105312,99854.0,99826.0,0.10238506]
[1738681704551,0.150233,99845.0,99832.0,0.150252]
[1738681704771,0.00105312,99844.0,99832.0,0.10238506]
[1738681704976,1.5,99855.0,99849.0,0.150226]
[1738681705179,0.01036,99872.0,99833.0,0.10238506]
[1738681705401,0.150216,99856.0,99843.0,0.150235]
[1738681705599,0.20024,99880.0,99844.0,0.10358686]
[1738681705836,1.5,99869.0,99844.0,0.10358686]
[1738681706035,0.11604,99881.0,99847.0,0.10238506]
[1738681706207,0.10568,99881.0,99850.0,0.10238506]
[1738681706414,0.10568,99881.0,99879.0,0.15018]
[1738681706611,0.0104,99906.0,99880.0,0.10238506]
[1738681706812,0.00014029,99894.0,99882.0,0.200236]
[1738681707014,0.00014029,99894.0,99893.0,0.15016]
[1738681707221,0.00014029,99894.0,99893.0,0.25374619]
[1738681707426,0.00014029,99894.0,99893.0,0.25254506]
[1738681708793,0.00014029,99894.0,99893.0,0.10238506]
[1738681709083,0.00014029,99894.0,99870.0,0.0492]
[1738681709288,0.00014029,99894.0,99893.0,0.10238506]
[1738681709446,0.00014029,99894.0,99893.0,0.10358612]
[1738681709867,0.00014029,99894.0,99893.0,0.30278612]
[1738681710235,0.08030355,99922.0,99921.0,0.150118]
[1738681710440,0.08030355,99922.0,99921.0,0.25250306]
[1738681710757,0.0001068,99927.0,99921.0,0.10238506]
[1738681710970,0.00024722,99927.0,99902.0,0.200196]
[1738681711249,0.00024722,99927.0,99903.0,0.10358595]
[1738681711373,0.00024722,99927.0,99903.0,0.10238506]
[1738681711593,0.150121,99920.0,99910.0,0.150135]
[1738681711812,0.150121,99920.0,99882.0,0.200235]
[1738681711813,0.200148,99926.0,99911.0,0.10238506]
[1738681712011,0.20015,99925.0,99911.0,0.10238506]
[1738681712220,0.00105312,99925.0,99911.0,0.10238506]
[1738681712441,0.150115,99923.0,99911.0,0.30256106]
[1738681712795,0.00105312,99925.0,99911.0,0.10238506]
[1738681713003,0.00024722,99927.0,99925.0,0.150111]
[1738681713208,0.00024722,99927.0,99926.0,0.10238506]
[1738681713823,0.00024722,99927.0,99926.0,0.10358575]
[1738681714234,0.00024722,99927.0,99926.0,0.10238506]
[1738681714544,0.07955077,99949.0,99926.0,0.10238506]
[1738681714699,0.08001873,99949.0,99926.0,0.10238506]
[1738681714880,0.15054496,99949.0,99926.0,0.10238506]
[1738681715077,0.150093,99938.0,99926.0,0.10238506]
[1738681715318,0.200104,99948.0,99926.0,0.10238506]
[1738681715509,0.150091,99939.0,99926.0,0.25249506]
[1738681715713,1.650093,99938.0,99926.0,0.25249506]
[1738681716054,1.5,99938.0,99926.0,0.10238506]
[1738681716435,1.5,99938.0,99928.0,0.150107]
[1738681716670,1.5,99938.0,99926.0,0.10238506]
[1738681716870,0.15105312,99937.0,99896.0,0.0757]
[1738681717124,0.15105312,99937.0,99874.0,0.310377]
[1738681717125,0.200128,99936.0,99899.0,0.200202]
[1738681717332,0.200128,99936.0,99874.0,0.300377]
[1738681717333,0.200146,99927.0,99889.0,0.20022]
[1738681717544,0.023,99923.0,99890.0,0.10238506]
[1738681717747,0.15,99920.0,99896.0,0.200207]
[1738681717957,0.15,99920.0,99875.0,0.0455]
[1738681717958,0.00105312,99919.0,99897.0,0.10238506]
[1738681718173,0.06012,99914.0,99875.0,0.0455]
[1738681718378,0.150164,99891.0,99882.0,0.150175]
[1738681718591,0.11286506,99918.0,99883.0,0.10238506]
[1738681718592,0.173,99915.0,99883.0,0.10238506]
[1738681718744,0.023,99904.0,99855.0,0.0469]
[1738681718951,0.150192,99872.0,99856.0,0.10238506]
[1738681719160,0.150179,99881.0,99871.0,0.150193]
[1738681719365,0.150183,99878.0,99857.0,0.00120152]
[1738681719570,0.15,99883.0,99857.0,0.00120152]
[1738681719571,0.15,99881.0,99858.0,0.10238506]
[1738681719777,0.15,99881.0,99859.0,0.0012015]
[1738681719974,0.150185,99877.0,99861.0,0.200278]
[1738681720238,0.150186,99876.0,99865.0,0.150202]
[1738681720367,0.15,99881.0,99862.0,0.10238506]
[1738681720568,0.00105312,99880.0,99862.0,0.10238506]
[1738681720814,0.1502,99867.0,99862.0,0.10238506]
[1738681720981,0.150209,99861.0,99855.0,0.00014042]
[1738681721176,0.173,99880.0,99855.0,0.00014042]
[1738681721375,0.150208,99862.0,99855.0,0.00014042]
[1738681721888,0.150195,99870.0,99855.0,0.00014042]
[1738681722095,0.15,99877.0,99863.0,0.200272]
[1738681722301,0.00105312,99876.0,99855.0,0.00014042]
[1738681722659,0.23095135,99905.0,99856.0,0.10238506]
[1738681722865,0.15,99894.0,99870.0,0.150194]
[1738681723131,0.15,99885.0,99871.0,0.1035865]
[1738681723349,0.15,99885.0,99855.0,0.00014042]
[1738681723350,0.00105312,99884.0,99855.0,0.00014042]
[1738681723611,0.150199,99868.0,99856.0,0.25260106]
[1738681723836,0.15021,99860.0,99855.0,0.00014042]
[1738681724054,0.150215,99857.0,99855.0,0.00014042]
[1738681724301,0.15105312,99856.0,99855.0,0.00014042]
[1738681724991,1.65105312,99856.0,99855.0,0.00014042]
[1738681725201,1.65,99856.0,99855.0,0.00014042]
[1738681725420,1.5,99856.0,99855.0,0.00014042]
[1738681725631,0.150178,99881.0,99856.0,0.150216]
[1738681725843,0.01011482,99874.0,99872.0,0.150191]
[1738681726055,0.01011482,99874.0,99873.0,0.10358643]
[1738681726259,0.01011482,99874.0,99873.0,0.32878643]
[1738681726467,0.08030355,99917.0,99902.0,0.150147]
[1738681726671,0.08030355,99917.0,99902.0,0.10238506]
[1738681727075,0.150129,99914.0,99902.0,0.10238506]
[1738681727291,0.00105312,99916.0,99871.0,0.02047304]
[1738681727492,0.00105312,99915.0,99891.0,0.200216]
[1738681727716,0.00105312,99915.0,99892.0,0.10238506]
[1738681727919,0.200172,99914.0,99891.0,0.00014042]
[1738681728123,0.150152,99899.0,99891.0,0.00014042]
[1738681728325,0.150157,99895.0,99891.0,0.00014042]
[1738681728531,0.200186,99907.0,99891.0,0.00014042]
[1738681728762,0.0001068,99920.0,99892.0,0.10238506]
[1738681728970,0.01058456,99944.0,99943.0,0.150085]
[1738681729181,0.01058456,99944.0,99930.0,0.31075504]
[1738681729426,0.01058456,99944.0,99910.0,0.31075504]
[1738681729607,0.00105312,99958.0,99913.0,0.15]
[1738681729808,0.15,99961.0,99916.0,0.15]
[1738681730049,0.0001067,99974.0,99917.0,0.00120059]
[1738681730261,0.06012,99959.0,99920.0,0.10238506]
[1738681730507,0.150098,99935.0,99920.0,0.10238506]
[1738681730716,0.00105312,99934.0,99932.0,0.08030355]
[1738681730938,0.0104,99975.0,99916.0,0.08030355]
[1738681730939,0.15,99950.0,99933.0,0.10238506]
[1738681731151,0.200093,99954.0,99933.0,0.10238506]
[1738681731364,0.200069,99966.0,99933.0,0.10238506]
[1738681731365,0.00105312,99953.0,99933.0,0.10238506]
[1738681731575,0.15,99949.0,99898.0,0.040042]
[1738681731797,0.200128,99936.0,99902.0,0.18268861]
[1738681732007,0.200132,99934.0,99902.0,0.18268861]
[1738681732223,0.150124,99918.0,99902.0,0.10238506]
[1738681732433,1.5,99913.0,99902.0,0.10238506]
[1738681732853,1.5,99913.0,99902.0,0.25253106]
[1738681733057,1.5,99913.0,99902.0,0.10238506]
[1738681733502,0.15,99912.0,99902.0,0.10238506]
[1738681733709,0.15,99912.0,99902.0,0.10252548]
[1738681734127,0.01,99903.0,99902.0,0.25267248]
[1738681734373,0.01,99903.0,99902.0,0.24267248]
[1738681734579,0.01,99903.0,99902.0,0.00014042]
[1738681734786,0.16,99903.0,99902.0,0.00014042]
[1738681735409,1.683,99903.0,99902.0,0.00014042]
[1738681736304,1.78538506,99903.0,99902.0,0.00014042]
[1738681736748,1.683,99903.0,99902.0,0.00014042]
[1738681737156,1.66,99903.0,99902.0,0.00014042]
[1738681737762,1.78538506,99903.0,99902.0,0.00014042]
[1738681738357,1.683,99903.0,99902.0,0.00014042]
[1738681738520,1.78538506,99903.0,99902.0,0.00014042]
[1738681740135,1.78549186,99903.0,99902.0,0.00014042]
[1738681741505,2.10699886,99903.0,99902.0,0.00014042]
[1738681741721,2.20949358,99903.0,99902.0,0.00014042]
[1738681741867,1.78549186,99903.0,99902.0,0.00014042]
[1738681742095,2.44516286,99903.0,99902.0,0.00014042]
[1738681742293,2.25902786,99903.0,99902.0,0.00014042]
[1738681742500,1.78549186,99903.0,99902.0,0.00014042]
[1738681742700,1.79581186,99903.0,99902.0,0.00014042]
[1738681742902,2.16776158,99903.0,99902.0,0.00014042]
[1738681743153,2.17776158,99903.0,99902.0,0.00014042]
[1738681743480,2.38684286,99903.0,99902.0,0.00014042]
[1738681743969,2.38684286,99903.0,99902.0,4.2e-07]
[1738681744228,0.150187,99875.0,99874.0,0.00022428]
[1738681744764,0.74838018,99875.0,99874.0,0.00036457]
[1738681744958,1.04838018,99875.0,99874.0,0.00014029]
[1738681744981,1.12628018,99875.0,99874.0,0.00014029]
[1738681745371,0.50347206,99875.0,99874.0,0.00014029]
[1738681745572,2.00347206,99875.0,99874.0,0.00014029]
[1738681745992,1.92557206,99875.0,99874.0,0.00014029]
[1738681746334,0.42557206,99875.0,99874.0,0.00014029]
[1738681746657,2.27313806,99875.0,99874.0,0.00014029]
[1738681746859,2.27296378,99875.0,99874.0,0.00014029]
[1738681747066,1.92657206,99875.0,99874.0,0.00014029]
[1738681747248,2.03570806,99875.0,99874.0,0.00014029]
[1738681747488,2.04221806,99875.0,99874.0,0.00014029]
[1738681747702,1.823187,99875.0,99874.0,0.00014029]
[1738681747893,0.173187,99875.0,99874.0,0.00014029]
[1738681748195,1.73464782,99875.0,99874.0,0.00014029]
[1738681748398,1.77557206,99875.0,99874.0,0.00014029]
[1738681748659,1.92557206,99875.0,99874.0,0.00014029]
[1738681748861,0.16031177,99883.0,99874.0,0.00014029]
[1738681749149,0.150187,99875.0,99874.0,0.00014029]
[1738681749654,0.31075504,99900.0,99874.0,0.00014029]
[1738681749870,0.01044928,99896.0,99874.0,0.00014029]
[1738681750091,0.15,99875.0,99874.0,0.00014029]
[1738681750295,0.15105312,99875.0,99874.0,0.00014029]
[1738681750503,0.27643818,99875.0,99874.0,0.00014029]
[1738681750712,0.33550506,99875.0,99874.0,0.00014029]
[1738681751348,0.81053406,99875.0,99874.0,0.00014029]
[1738681751555,0.91824887,99875.0,99874.0,0.00014029]
[1738681751765,0.28060515,99875.0,99874.0,0.00014029]
[1738681751975,0.27538506,99875.0,99874.0,0.00014029]
[1738681752187,0.28558808,99875.0,99874.0,0.00014029]
[1738681752447,1.78558808,99875.0,99874.0,0.00014029]
[1738681752866,1.96894508,99875.0,99874.0,0.00036457]
[1738681753070,2.01198384,99875.0,99874.0,0.00036457]
[1738681753473,1.92023808,99875.0,99874.0,0.00036457]
[1738681753698,1.89284008,99875.0,99874.0,0.00036457]
[1738681753855,1.96296008,99875.0,99874.0,5.7e-07]
[1738681754020,1.87092805,99875.0,99874.0,5.7e-07]
[1738681754220,1.97342277,99875.0,99874.0,5.7e-07]
[1738681754928,2.04448692,99875.0,99874.0,5.7e-07]
[1738681755054,2.04648692,99875.0,99874.0,5.7e-07]
[1738681755253,1.89302105,99875.0,99874.0,5.7e-07]
[1738681755455,2.20302105,99875.0,99874.0,5.7e-07]
[1738681755765,2.19302105,99875.0,99874.0,5.7e-07]
[1738681756169,2.20302105,99875.0,99874.0,5.7e-07]
[1738681756509,2.36320805,99875.0,99874.0,5.7e-07]
[1738681756729,2.46570277,99875.0,99874.0,5.7e-07]
[1738681757292,2.55942277,99875.0,99874.0,5.7e-07]
[1738681757489,2.45692805,99875.0,99874.0,5.7e-07]
[1738681757688,2.43428805,99875.0,99874.0,5.7e-07]
[1738681757916,2.13428805,99875.0,99874.0,5.7e-07]
[1738681758148,2.08016805,99875.0,99874.0,0.00100057]
[1738681758292,1.93016805,99875.0,99874.0,0.00100057]
[1738681758491,1.99028805,99875.0,99874.0,0.00100057]
[1738681758693,2.13428805,99875.0,99874.0,5.7e-07]
[1738681758899,2.07861508,99875.0,99874.0,5.7e-07]
[1738681759263,2.2071098,99875.0,99874.0,5.7e-07]
[1738681759399,2.2123297,99875.0,99874.0,5.7e-07]
[1738681759605,2.08683498,99875.0,99874.0,5.7e-07]
[1738681759808,0.10872,99875.0,99874.0,5.7e-07]
[1738681760093,0.003,99875.0,99874.0,5.7e-07]
[1738681760512,0.003,99875.0,99874.0,0.10238563]
[1738681760710,0.003,99875.0,99874.0,0.149487]
[1738681760955,0.0101068,99903.0,99896.0,0.200208]
[1738681761265,0.0101068,99903.0,99901.0,0.150148]
[1738681761523,0.0101068,99903.0,99902.0,0.10238506]
[1738681761907,0.0101068,99903.0,99895.0,0.0763]
[1738681762101,0.0101068,99903.0,99882.0,0.0818]
[1738681762321,0.0101068,99903.0,99883.0,0.10238506]
[1738681762522,0.0101068,99903.0,99901.0,0.150147]
[1738681762733,0.0101068,99903.0,99902.0,0.10238506]
[1738681763061,0.0101068,99903.0,99902.0,0.15078506]
[1738681764503,0.0101068,99903.0,99902.0,0.15221035]
[1738681764701,0.01048,99959.0,99904.0,0.15]
[1738681764938,0.08030355,99937.0,99936.0,0.150096]
[1738681765096,0.150075,99950.0,99934.0,0.150098]
[1738681765317,0.00105312,99946.0,99935.0,0.10238506]
[1738681765522,0.200092,99954.0,99935.0,0.10238506]
[1738681765523,0.150076,99950.0,99935.0,0.10238506]
[1738681765728,0.00105312,99949.0,99935.0,0.10238506]
[1738681766061,0.00105312,99956.0,99939.0,0.15009]
[1738681766274,0.00046814,99949.0,99936.0,0.150095]
[1738681766387,0.00046814,99949.0,99923.0,0.200152]
[1738681766388,0.00046814,99949.0,99938.0,0.0474]
[1738681766834,0.200104,99948.0,99938.0,0.0474]
[1738681767007,0.15113212,99947.0,99938.0,0.0474]
[1738681767223,0.20011,99945.0,99938.0,0.0474]
[1738681767502,0.150089,99941.0,99936.0,0.001]
[1738681767683,0.00046814,99949.0,99921.0,0.00120074]
[1738681767684,0.00152126,99949.0,99921.0,0.00120074]
[1738681767881,0.0001067,99976.0,99948.0,0.196678]
[1738681768080,0.0001067,99976.0,99936.0,0.01]
[1738681768081,0.0001067,99976.0,99974.0,0.0466]
[1738681768330,0.0001067,99976.0,99975.0,0.30123698]
[1738681768531,0.0001067,99976.0,99975.0,0.150037]
[1738681768659,0.1002473,100010.0,99974.0,0.0466]
[1738681768660,0.24869329,100010.0,99974.0,0.0466]
[1738681768845,0.00105312,100000.0,99974.0,0.196638]
[1738681769246,0.00105312,100000.0,99975.0,0.10238506]
[1738681769662,0.00105312,100000.0,99976.0,0.08030355]
[1738681769840,0.200002,99999.0,99977.0,0.30243106]
[1738681770075,0.00105312,99998.0,99977.0,0.10238506]
[1738681770280,0.200026,99987.0,99974.0,0.0466]
[1738681770487,0.00105312,99986.0,99975.0,0.10238506]
[1738681771080,0.15,99991.0,99976.0,0.150036]
[1738681771292,0.15,99991.0,99975.0,0.10238506]
[1738681771500,0.15,99998.0,99975.0,0.10238506]
[1738681771700,0.200008,99996.0,99975.0,0.10238506]
[1738681771900,0.150014,99991.0,99976.0,0.150036]
[1738681772260,0.15105312,99995.0,99975.0,0.10238506]
[1738681772464,0.15,99999.0,99977.0,0.10238506]
[1738681772635,0.15,99995.0,99980.0,0.150029]
[1738681772865,0.150018,99988.0,99974.0,0.0466]
[1738681773077,0.150021,99986.0,99974.0,0.0466]
[1738681773277,0.150021,99986.0,99940.0,0.54135124]
[1738681773278,0.00105312,99985.0,99951.0,0.047]
[1738681773505,0.00105312,99985.0,99953.0,0.10238506]
[1738681773506,0.200043,99979.0,99953.0,0.10238506]
[1738681773720,1.5,99978.0,99953.0,0.10358543]
[1738681774132,0.15,99991.0,99953.0,0.10358543]
[1738681774280,0.50238506,100000.0,99953.0,0.10358543]
[1738681774281,0.15,99985.0,99960.0,0.200079]
[1738681774497,0.150024,99984.0,99967.0,0.150048]
[1738681774700,0.15,99985.0,99952.0,0.08030355]
[1738681774860,0.00105312,99983.0,99964.0,0.00014038]
[1738681775766,0.00105312,99984.0,99965.0,0.10238506]
[1738681775942,0.15,99983.0,99968.0,0.150047]
[1738681776153,0.15,99983.0,99966.0,0.200066]
[1738681776359,0.15,99983.0,99980.0,0.150028]
[1738681776586,0.00808246,99995.0,99982.0,0.200036]
[1738681776790,0.349947,100020.0,99983.0,0.1035851]
[1738681776995,0.349916,100030.0,100000.0,0.149996]
[1738681777205,0.15824023,100030.0,100010.0,0.199972]
[1738681777429,0.360197,100040.0,100010.0,0.45233606]
[1738681777430,0.349877,100040.0,100010.0,0.45233606]
[1738681777644,0.15101012,100030.0,100010.0,0.45233606]
[1738681777847,0.00105312,100030.0,100000.0,0.199989]
[1738681777992,0.00105312,100030.0,100000.0,0.45236206]
[1738681777993,0.35096112,100030.0,100000.0,0.45236206]
[1738681778193,0.00014038,100030.0,100010.0,0.25236706]
[1738681778392,0.00014038,100030.0,100010.0,0.45234606]
[1738681778822,0.00014038,100030.0,100020.0,0.14997]
[1738681779027,0.00014038,100030.0,100020.0,0.25355475]
[1738681779231,0.00014038,100030.0,100020.0,0.5631101]
[1738681779395,0.00014038,100030.0,100020.0,0.25235506]
[1738681779602,0.00014038,100030.0,100020.0,0.5631101]
[1738681780040,0.00014038,100030.0,100020.0,0.25235506]
[1738681781518,0.00014038,100030.0,100010.0,0.397649]
[1738681781739,0.00014038,100030.0,100010.0,0.15008506]
[1738681781740,0.3740925,100030.0,100010.0,0.15008506]
[1738681782249,0.0011935,100030.0,100010.0,0.18268861]
[1738681782431,0.00014038,100030.0,100020.0,0.25355463]
[1738681782688,0.00014038,100030.0,100020.0,0.10238506]
[1738681782689,0.15009538,100030.0,100020.0,0.10238506]
[1738681782896,0.22309138,100030.0,99990.0,0.0458]
[1738681783071,1.5,100020.0,99992.0,0.200014]
[1738681783276,0.15,100020.0,100000.0,0.199993]
[1738681783484,0.15,100020.0,100000.0,0.10238506]
[1738681783485,0.299985,100010.0,100000.0,0.10238506]
[1738681783704,0.15,100000.0,99970.0,0.1261]
[1738681783907,0.15,100000.0,99983.0,0.200032]
[1738681784120,0.150001,99999.0,99987.0,0.150019]
[1738681784243,0.15,100000.0,99988.0,0.10238506]
[1738681784690,0.150003,99998.0,99988.0,0.10238506]
[1738681784889,0.00105312,99997.0,99958.0,0.350083]
[1738681785121,0.00105312,99997.0,99971.0,0.10238506]
[1738681785731,0.150014,99991.0,99971.0,0.10238506]
[1738681785936,0.15,99996.0,99971.0,0.10238506]
[1738681786151,0.150032,99979.0,99971.0,0.10238506]
[1738681786408,0.00105312,99978.0,99953.0,0.0485]
[1738681786616,0.15,99994.0,99953.0,0.0485]
[1738681786617,0.00105312,99989.0,99954.0,0.10252544]
[1738681786819,0.150054,99964.0,99954.0,0.00014038]
[1738681786961,0.150056,99963.0,99954.0,0.00014038]
[1738681787168,0.00105312,99986.0,99954.0,0.00014038]
[1738681787368,0.08030355,99972.0,99954.0,0.00014038]
[1738681787612,0.150066,99956.0,99954.0,0.00014038]
[1738681787819,0.00105312,99955.0,99954.0,0.00014038]
[1738681788851,0.023,99955.0,99954.0,0.00014038]
[1738681789195,0.00105312,99955.0,99954.0,0.00014038]
[1738681789391,0.150066,99956.0,99954.0,0.00014038]
[1738681789598,0.00105312,99955.0,99954.0,0.00014038]
[1738681790251,0.02405312,99955.0,99954.0,0.00014038]
[1738681790456,0.15111912,99956.0,99954.0,0.00014038]
[1738681791032,0.31075504,99970.0,99954.0,0.00014038]
[1738681791238,0.08030355,99983.0,99954.0,0.00014038]
[1738681791440,0.150051,99966.0,99954.0,0.15020838]
[1738681791748,0.200055,99973.0,99954.0,0.00014038]
[1738681791952,0.15006,99960.0,99954.0,0.10252544]
[1738681792194,0.20007,99965.0,99954.0,0.00014038]
[1738681792378,0.150057,99962.0,99954.0,0.00014038]
[1738681792572,0.023,99974.0,99954.0,0.00014038]
[1738681792779,0.150058,99961.0,99954.0,0.00014038]
[1738681792997,0.00105312,99973.0,99954.0,0.00014038]
[1738681793188,0.15004,99974.0,99960.0,0.150059]
[1738681793392,0.31075504,99990.0,99961.0,0.10238506]
[1738681793628,0.08030355,99983.0,99963.0,0.150055]
[1738681793780,0.150031,99979.0,99964.0,0.150052]
[1738681793982,0.00105312,99980.0,99961.0,0.32071602]
[1738681794190,0.00105312,99980.0,99961.0,0.12064002]
[1738681794397,0.150038,99975.0,99961.0,0.12064002]
[1738681794591,0.223034,99983.0,99961.0,0.32071602]
[1738681794838,0.00105312,99982.0,99962.0,0.01825496]
[1738681795012,0.023,99978.0,99962.0,0.01825496]
[1738681795235,0.15005,99967.0,99962.0,0.01825496]
[1738681795566,0.00105312,99977.0,99962.0,0.01825496]
[1738681795567,0.173,99963.0,99962.0,0.01825496]
[1738681795764,0.17405312,99963.0,99962.0,0.01825496]
[1738681795895,0.150067,99955.0,99954.0,0.00014038]
[1738681796105,1.650067,99955.0,99954.0,0.00014038]
[1738681797056,1.5,99955.0,99954.0,0.00014038]
[1738681797799,0.150066,99956.0,99954.0,0.00014038]
[1738681797990,0.00105312,99955.0,99954.0,0.00014038]
[1738681798190,1.50105312,99955.0,99954.0,0.00014038]
[1738681798397,1.5,99955.0,99954.0,0.00014038]
[1738681799034,0.31075504,99970.0,99954.0,0.00014038]
[1738681799264,0.150067,99956.0,99954.0,0.00014038]
[1738681799422,0.00105312,99955.0,99954.0,0.00014038]
[1738681799825,0.02405312,99955.0,99954.0,0.00014038]
[1738681800035,0.17405312,99955.0,99954.0,0.00014038]
[1738681800187,0.27643818,99955.0,99954.0,0.00014038]
[1738681800413,0.15,99951.0,99902.0,0.00022428]
[1738681800611,0.200148,99926.0,99902.0,0.10260934]
[1738681800839,0.150144,99904.0,99902.0,0.00022428]
[1738681801035,0.00105312,99903.0,99902.0,0.00022428]
[1738681801447,0.00105312,99911.0,99902.0,0.00022428]
[1738681801740,0.200182,99909.0,99902.0,0.00022428]
[1738681801959,0.150145,99903.0,99902.0,0.00022428]
[1738681802377,1.65119812,99903.0,99902.0,0.00022428]
[1738681802547,1.77553006,99903.0,99902.0,0.00022428]
[1738681802774,1.92553006,99903.0,99902.0,0.00022428]
[1738681803581,1.800145,99903.0,99902.0,0.00022428]
[1738681804193,0.00014012,99909.0,99902.0,0.00022428]
[1738681804797,0.00014012,99909.0,99905.0,0.150142]
[1738681805007,0.00014012,99909.0,99907.0,0.150139]
[1738681805213,0.00014012,99909.0,99908.0,0.10358602]
[1738681807283,0.00014012,99909.0,99908.0,0.25358602]
[1738681807675,0.08030355,99941.0,99940.0,0.15009]
[1738681807879,0.08030355,99941.0,99940.0,0.25247506]
[1738681808085,0.00014033,99941.0,99940.0,0.25247506]
[1738681808638,0.06244387,99953.0,99952.0,0.150072]
[1738681808840,0.00105312,99971.0,99952.0,0.10238506]
[1738681809047,0.00014031,99971.0,99958.0,0.200082]
[1738681809262,0.00014031,99971.0,99961.0,0.150057]
[1738681809468,0.00014031,99971.0,99955.0,0.200089]
[1738681809469,0.00014031,99971.0,99962.0,0.10238506]
[1738681809675,0.00014031,99971.0,99969.0,0.150046]
[1738681809842,0.00014031,99971.0,99970.0,0.10358525]
[1738681810240,0.00014031,99971.0,99970.0,0.15028525]
[1738681810687,0.00014031,99971.0,99970.0,0.15028509]
[1738681811347,0.00014031,99971.0,99970.0,0.15028505]
[1738681811780,0.00014031,99971.0,99970.0,0.14908506]
[1738681812160,0.00014031,99971.0,99970.0,0.15028517]
[1738681812922,0.00014031,99971.0,99970.0,0.14908506]
[1738681813150,0.00024711,99971.0,99970.0,0.10238506]
[1738681813344,0.00024711,99971.0,99950.0,0.0455]
[1738681813545,0.00024711,99971.0,99956.0,0.200086]
[1738681813748,0.00024711,99971.0,99962.0,0.150055]